bitfinex/quotes_BTCUSD_20241022
["timestamp","ask_amount","ask_price","bid_price","bid_amount"]
[1729591236766,0.1064957,67015.0,67014.0,0.86127693]
[1729591237011,0.1064957,67015.0,67014.0,0.87493219]
[1729591237248,0.1064957,67015.0,67014.0,0.74591931]
[1729591237481,0.1064957,67015.0,67014.0,0.75991931]
[1729591237726,0.1064957,67015.0,67014.0,0.4726049]
[1729591237982,0.1064957,67015.0,67014.0,0.42104594]
[1729591238228,0.1064957,67015.0,67014.0,0.44804594]
[1729591239452,0.1064957,67015.0,67014.0,0.45304594]
[1729591240648,0.1064957,67015.0,67014.0,0.5813074]
[1729591241153,0.1064957,67015.0,67014.0,0.70450509]
[1729591241389,0.1064957,67015.0,67014.0,0.75107755]
[1729591243484,0.1064957,67015.0,67014.0,0.88809043]
[1729591244405,0.1064957,67015.0,67014.0,0.88509043]
[1729591244631,0.1064957,67015.0,67014.0,0.88009043]
[1729591244877,0.1064957,67015.0,67014.0,1.03904958]
[1729591245809,0.1064957,67015.0,67014.0,1.03704958]
[1729591246023,0.1064957,67015.0,67014.0,1.03904958]
[1729591247343,0.1064957,67015.0,67014.0,1.0837275]
[1729591247996,0.1064957,67015.0,67014.0,1.11504958]
[1729591248454,0.1064957,67015.0,67014.0,1.18206647]
[1729591249459,0.22265268,67045.0,67021.0,0.166206]
[1729591249706,0.22265268,67035.0,67021.0,0.57517803]
[1729591249928,0.22265268,67045.0,67021.0,0.67643896]
[1729591250148,0.22265268,67038.0,67021.0,0.75893896]
[1729591250372,0.22265268,67038.0,67021.0,0.75693896]
[1729591250600,0.29875268,67044.0,67033.0,0.25418]
[1729591250873,0.29875268,67044.0,67033.0,0.56315203]
[1729591251090,0.0761,67044.0,67033.0,0.57306922]
[1729591251317,0.0821,67050.0,67033.0,0.7957219]
[1729591251543,0.0821,67050.0,67033.0,0.74776922]
[1729591251775,0.22265268,67049.0,67033.0,0.89672837]
[1729591251995,0.0821,67050.0,67033.0,0.89672837]
[1729591252662,0.22265268,67049.0,67033.0,0.89672837]
[1729591252959,0.22265268,67049.0,67033.0,0.90672837]
[1729591253694,0.00169,67055.0,67033.0,0.92772837]
[1729591253910,0.150821,67055.0,67033.0,0.92772837]
[1729591254596,0.00169,67055.0,67033.0,0.92772837]
[1729591254834,0.150821,67055.0,67033.0,0.92772837]
[1729591255082,0.00169,67055.0,67033.0,1.14238105]
[1729591255321,0.150823,67055.0,67033.0,0.92772837]
[1729591255584,0.299952,67055.0,67033.0,0.92772837]
[1729591255822,0.0762,67050.0,67033.0,0.91672837]
[1729591256045,0.0762,67050.0,67033.0,0.91772837]
[1729591256274,0.07789,67055.0,67033.0,0.90672837]
[1729591256532,0.07789,67055.0,67033.0,0.91872837]
[1729591256802,0.07789,67055.0,67033.0,0.93272837]
[1729591257025,0.07789,67055.0,67033.0,0.90672837]
[1729591257267,0.07789,67055.0,67033.0,0.91972837]
[1729591257504,0.07789,67055.0,67033.0,0.90672837]
[1729591257957,0.07789,67055.0,67033.0,0.90872837]
[1729591258191,0.07789,67055.0,67033.0,0.92072837]
[1729591258667,0.07789,67055.0,67033.0,0.91872837]
[1729591259595,0.227021,67055.0,67033.0,0.93272837]
[1729591259812,0.227021,67055.0,67033.0,0.90672837]
[1729591260035,0.07789,67055.0,67033.0,0.93472837]
[1729591260260,0.227022,67055.0,67033.0,0.78576922]
[1729591260494,0.227022,67055.0,67033.0,0.77176922]
[1729591260775,0.07789,67055.0,67033.0,0.77176922]
[1729591260997,0.227022,67055.0,67033.0,0.77176922]
[1729591261668,0.227022,67055.0,67033.0,0.78576922]
[1729591261902,0.07789,67055.0,67033.0,0.78576922]
[1729591265455,0.227023,67055.0,67033.0,0.78576922]
[1729591265688,0.000915,67034.0,67033.0,0.78576922]
[1729591268742,0.000915,67034.0,67033.0,0.57806922]
[1729591269001,0.000915,67034.0,67033.0,0.28709719]
[1729591269481,0.000915,67034.0,67033.0,0.03791719]
[1729591269959,0.000915,67034.0,67033.0,0.28709719]
[1729591270195,0.000915,67034.0,67033.0,0.27309719]
[1729591270432,0.000915,67034.0,67033.0,0.28709719]
[1729591270672,0.000915,67034.0,67033.0,0.25909719]
[1729591271131,0.000915,67034.0,67033.0,0.19409719]
[1729591271608,0.000915,67034.0,67033.0,0.18809719]
[1729591272093,0.000915,67034.0,67033.0,0.19409719]
[1729591272566,0.000915,67034.0,67033.0,0.50953568]
[1729591272789,0.000915,67034.0,67033.0,0.286883]
[1729591273252,0.000915,67034.0,67033.0,0.19409719]
[1729591277295,0.077215,67034.0,67033.0,0.20527281]
[1729591277752,0.077215,67034.0,67033.0,0.19535562]
[1729591280082,0.077215,67034.0,67033.0,0.18418]
[1729591280311,0.077215,67034.0,67033.0,0.19536431]
[1729591282367,0.000915,67034.0,67033.0,0.19536431]
[1729591283508,0.000915,67034.0,67033.0,0.18418]
[1729591283733,0.000915,67034.0,67033.0,0.19536395]
[1729591287230,0.000915,67034.0,67033.0,0.18418]
[1729591287461,0.000915,67034.0,67033.0,0.19536305]
[1729591290024,0.000915,67034.0,67033.0,0.19701305]
[1729591290494,0.000915,67034.0,67033.0,0.28459263]
[1729591290720,0.000915,67034.0,67033.0,0.16283]
[1729591290953,0.000915,67034.0,67033.0,0.17401392]
[1729591291210,0.178715,67034.0,67033.0,0.01365]
[1729591291435,0.178715,67034.0,67033.0,0.17401405]
[1729591292165,0.178715,67034.0,67033.0,0.16801405]
[1729591292435,0.178715,67034.0,67033.0,0.16701405]
[1729591292656,0.178715,67034.0,67033.0,0.02083405]
[1729591292905,0.178715,67034.0,67033.0,0.16201405]
[1729591293367,0.178715,67034.0,67033.0,0.16601405]
[1729591293818,0.178715,67034.0,67033.0,0.16201405]
[1729591294045,0.178715,67034.0,67033.0,0.01283405]
[1729591294302,0.178715,67034.0,67033.0,0.16401405]
[1729591294533,0.178715,67034.0,67033.0,0.16601405]
[1729591294756,0.178715,67034.0,67033.0,0.01683405]
[1729591294988,0.178715,67034.0,67033.0,0.16601405]
[1729591295695,0.178715,67034.0,67033.0,0.16201405]
[1729591295922,0.178715,67034.0,67033.0,0.16401405]
[1729591296387,0.178715,67034.0,67033.0,0.16201405]
[1729591296607,0.178715,67034.0,67033.0,0.16401405]
[1729591297074,0.178715,67034.0,67033.0,0.16201405]
[1729591297288,0.179715,67034.0,67033.0,0.16201405]
[1729591301404,0.179715,67034.0,67033.0,0.16201538]
[1729591301624,0.179715,67034.0,67033.0,0.15083]
[1729591301843,0.179715,67034.0,67033.0,0.16201538]
[1729591305044,0.179715,67034.0,67033.0,0.16201426]
[1729591308183,0.179715,67034.0,67033.0,0.01283426]
[1729591308407,0.179715,67034.0,67033.0,0.16201426]
[1729591308627,0.179715,67034.0,67033.0,0.15083]
[1729591309098,0.179715,67034.0,67033.0,0.16201486]
[1729591309348,0.17953545,67034.0,67033.0,0.16201486]
[1729591310067,0.4776726,67034.0,67033.0,0.00165]
[1729591310292,0.3284946,67034.0,67033.0,0.00165]
[1729591311428,0.4776726,67034.0,67033.0,0.00165]
[1729591313536,0.3284946,67034.0,67033.0,0.00165]
[1729591314015,0.4776726,67034.0,67033.0,0.00165]
[1729591317123,0.3284946,67034.0,67033.0,0.00165]
[1729591324237,0.2317946,67034.0,67033.0,0.00165]
[1729591326704,0.3809726,67034.0,67033.0,0.00165]
[1729591327417,0.47360196,67034.0,67033.0,0.00165]
[1729591327673,0.5182321,67034.0,67033.0,0.00165]
[1729591327920,0.47360196,67034.0,67033.0,0.00165]
[1729591328413,0.5172266,67034.0,67033.0,0.00165]
[1729591328625,0.47260196,67034.0,67033.0,0.00165]
[1729591329084,0.47360196,67034.0,67033.0,0.00265]
[1729591329332,0.51823113,67034.0,67033.0,0.00265]
[1729591329559,0.56800196,67034.0,67033.0,0.00265]
[1729591329794,0.56900196,67034.0,67033.0,0.00265]
[1729591330899,0.57100196,67034.0,67033.0,0.00265]
[1729591331140,0.63794717,67034.0,67033.0,0.00265]
[1729591331381,0.63594717,67034.0,67033.0,0.00265]
[1729591333764,0.82324432,67034.0,67033.0,0.00265]
[1729591333992,0.73390118,67034.0,67033.0,0.00265]
[1729591335464,0.82324685,67034.0,67033.0,0.00265]
[1729591335705,0.81324685,67034.0,67033.0,0.00265]
[1729591336409,0.72390118,67034.0,67033.0,0.00265]
[1729591336631,0.83560611,67034.0,67033.0,0.00265]
[1729591336857,0.72390118,67034.0,67033.0,0.00265]
[1729591337303,0.81325457,67034.0,67033.0,0.00265]
[1729591337762,0.72390118,67034.0,67033.0,0.00265]
[1729591338506,0.81325375,67034.0,67033.0,0.00265]
[1729591338730,0.72390118,67034.0,67033.0,0.00265]
[1729591339206,0.81325875,67034.0,67033.0,0.00265]
[1729591339434,0.81325964,67034.0,67033.0,0.00265]
[1729591339669,0.83560611,67034.0,67033.0,0.00265]
[1729591339907,0.81325973,67034.0,67033.0,0.00265]
[1729591340181,0.55939492,67034.0,67033.0,0.00265]
[1729591340407,0.21799794,67034.0,67033.0,0.00265]
[1729591340680,0.15095915,67034.0,67033.0,0.00265]
[1729591341847,0.19565301,67034.0,67033.0,0.00265]
[1729591342105,0.15095915,67034.0,67033.0,0.00265]
[1729591342368,0.19565301,67034.0,67033.0,0.00265]
[1729591343744,0.34483101,67034.0,67033.0,0.00265]
[1729591343973,0.19565301,67034.0,67033.0,0.00265]
[1729591344431,0.15095915,67034.0,67033.0,0.00265]
[1729591344661,0.1956665,67034.0,67033.0,0.00265]
[1729591344887,0.30013715,67034.0,67033.0,0.00265]
[1729591345125,0.34484461,67034.0,67033.0,0.00265]
[1729591345354,0.19566661,67034.0,67033.0,0.00265]
[1729591345584,0.19566708,67034.0,67033.0,0.00265]
[1729591345805,0.30013715,67034.0,67033.0,0.00265]
[1729591346555,0.36617794,67034.0,67033.0,0.00165]
[1729591346774,0.36617794,67034.0,67033.0,0.00265]
[1729591346775,0.30013715,67034.0,67033.0,0.00265]
[1729591347001,0.36800294,67034.0,67033.0,0.00265]
[1729591347237,0.36900294,67034.0,67033.0,0.00265]
[1729591347497,0.30196215,67034.0,67033.0,0.00265]
[1729591348174,0.29996215,67034.0,67033.0,0.00165]
[1729591348647,0.30096215,67034.0,67033.0,0.00165]
[1729591349117,0.29996215,67034.0,67033.0,0.00165]
[1729591349375,0.30196215,67034.0,67033.0,0.00265]
[1729591349617,0.36903112,67034.0,67033.0,0.00265]
[1729591349863,0.29896215,67034.0,67033.0,0.00165]
[1729591350107,0.36903112,67034.0,67033.0,0.00365]
[1729591350593,0.36804035,67034.0,67033.0,0.00265]
[1729591351538,0.34568148,67034.0,67033.0,0.00265]
[1729591351779,0.19750406,67034.0,67033.0,0.00365]
[1729591352008,0.048545,67034.0,67033.0,0.00365]
[1729591352253,0.003825,67034.0,67033.0,0.09435]
[1729591352499,0.003825,67034.0,67033.0,0.17355]
[1729591352500,0.001825,67034.0,67033.0,0.17355]
[1729591352748,0.002825,67034.0,67033.0,0.17355]
[1729591352978,0.003825,67034.0,67033.0,0.17455]
[1729591353219,0.001825,67034.0,67033.0,0.17355]
[1729591353689,0.003825,67034.0,67033.0,0.17355]
[1729591353951,0.002825,67034.0,67033.0,0.17255]
[1729591355111,0.003825,67034.0,67033.0,0.17255]
[1729591358369,0.001825,67034.0,67033.0,0.0922044]
[1729591362252,0.001825,67034.0,67033.0,0.0015044]
[1729591362472,0.29996215,67034.0,67033.0,0.0015044]
[1729591362932,0.29996215,67034.0,67033.0,0.0013588]
[1729591363589,0.15078415,67034.0,67033.0,0.0013588]
[1729591364514,0.29996215,67034.0,67033.0,0.0013588]
[1729591364736,0.30496215,67034.0,67033.0,0.0013588]
[1729591364973,0.64969975,67034.0,67033.0,0.0013588]
[1729591365213,0.48466215,67034.0,67033.0,0.0013588]
[1729591365453,0.76152505,67034.0,67033.0,0.0013588]
[1729591365705,0.76052505,67034.0,67033.0,0.0013588]
[1729591365922,0.76252505,67034.0,67033.0,0.0013588]
[1729591366145,0.76352505,67034.0,67033.0,0.0013588]
[1729591366360,0.76052505,67034.0,67033.0,0.0013588]
[1729591366590,0.76152505,67034.0,67033.0,0.0023588]
[1729591366825,0.76352505,67034.0,67033.0,0.0033588]
[1729591367050,0.76352505,67034.0,67033.0,0.0023588]
[1729591367051,0.76252505,67034.0,67033.0,0.0023588]
[1729591367265,0.76352505,67034.0,67033.0,0.0033588]
[1729591369124,0.76252505,67034.0,67033.0,0.0023588]
[1729591369362,0.76352505,67034.0,67033.0,0.0033588]
[1729591370089,0.48666215,67034.0,67033.0,0.0033588]
[1729591370316,0.76363347,67034.0,67033.0,0.0033588]
[1729591375157,0.76372182,67034.0,67033.0,0.0033588]
[1729591376133,0.65184915,67034.0,67033.0,0.0033588]
[1729591376813,0.76372396,67034.0,67033.0,0.0033588]
[1729591377040,0.76372284,67034.0,67033.0,0.0033588]
[1729591377271,0.65184915,67034.0,67033.0,0.0033588]
[1729591377525,0.65211126,67034.0,67033.0,0.0033588]
[1729591380103,0.65210126,67034.0,67033.0,0.0033588]
[1729591381465,0.43009142,67034.0,67033.0,0.0033588]
[1729591381696,0.31822326,67034.0,67033.0,0.0033588]
[1729591382150,0.40771704,67034.0,67033.0,0.0033588]
[1729591382394,0.31622326,67034.0,67033.0,0.0023588]
[1729591382682,0.40471704,67034.0,67033.0,0.0013588]
[1729591382905,0.40771704,67034.0,67033.0,0.0023588]
[1729591383130,0.40871704,67034.0,67033.0,0.0023588]
[1729591383352,0.40873405,67034.0,67033.0,0.0023588]
[1729591383585,0.40973405,67034.0,67033.0,0.0033588]
[1729591384079,0.07321192,67034.0,67033.0,0.1525388]
[1729591384301,0.07321192,67034.0,67033.0,0.1515388]
[1729591384302,0.00308711,67034.0,67033.0,0.1515388]
[1729591384537,0.00308711,67034.0,67033.0,0.3245388]
[1729591384767,0.00608711,67034.0,67033.0,0.3255388]
[1729591385448,0.00608711,67034.0,67033.0,0.3245388]
[1729591385671,0.00308711,67034.0,67033.0,0.3245388]
[1729591385901,0.00508711,67034.0,67033.0,0.3245388]
[1729591386373,0.00308711,67034.0,67033.0,0.3235388]
[1729591386830,0.00408711,67034.0,67033.0,0.3235388]
[1729591387055,0.00108711,67034.0,67033.0,0.3235388]
[1729591387507,0.00108711,67034.0,67033.0,0.3315388]
[1729591389811,0.00108711,67034.0,67033.0,0.3545388]
[1729591390255,0.00108711,67034.0,67033.0,0.46719345]
[1729591390698,0.00108711,67034.0,67033.0,0.56719345]
[1729591390924,0.00108711,67034.0,67033.0,0.57788237]
[1729591391145,0.00108711,67034.0,67033.0,0.46522772]
[1729591391366,0.00108711,67034.0,67033.0,0.46122772]
[1729591391594,0.00108711,67034.0,67033.0,0.45722772]
[1729591392163,0.00108711,67034.0,67033.0,0.46822772]
[1729591393154,0.00108711,67034.0,67033.0,0.48022772]
[1729591393381,0.00108711,67034.0,67033.0,0.46922772]
[1729591393598,0.00108711,67034.0,67033.0,0.76507568]
[1729591393818,0.00108711,67034.0,67033.0,0.77607568]
[1729591394323,0.00108711,67034.0,67033.0,0.75307568]
[1729591394564,0.00108711,67034.0,67033.0,0.76307568]
[1729591394792,0.00108711,67034.0,67033.0,0.77407568]
[1729591395022,0.00108711,67034.0,67033.0,0.75307568]
[1729591395260,0.00108711,67034.0,67033.0,0.60618687]
[1729591395753,0.00108711,67034.0,67033.0,0.61735332]
[1729591395983,0.00108711,67034.0,67033.0,0.48039417]
[1729591396450,0.00108711,67034.0,67033.0,0.49439417]
[1729591396940,0.08871647,67034.0,67033.0,0.03852525]
[1729591397161,0.38685362,67034.0,67033.0,0.0273588]
[1729591397648,0.38685362,67034.0,67033.0,0.0133588]
[1729591397870,0.38685362,67034.0,67033.0,0.0013588]
[1729591398110,0.38685362,67034.0,67033.0,0.0063588]
[1729591398591,0.38685362,67034.0,67033.0,0.0013588]
[1729591398592,0.15004626,67034.0,67033.0,0.0013588]
[1729591399077,0.15004626,67034.0,67033.0,0.0043588]
[1729591399299,0.00108711,67034.0,67033.0,0.0043588]
[1729591399806,0.00108711,67034.0,67033.0,0.0073588]
[1729591400525,0.00108711,67034.0,67033.0,0.1565388]
[1729591401901,0.00108711,67034.0,67033.0,0.0073588]
[1729591406259,0.4361853,67034.0,67033.0,0.0073588]
[1729591406960,0.29922426,67034.0,67033.0,0.0073588]
[1729591407190,0.00108711,67034.0,67033.0,0.0073588]
[1729591407973,0.00108711,67034.0,67033.0,0.1565388]
[1729591408191,0.00108711,67034.0,67033.0,0.0073588]
[1729591408416,0.00078875,67034.0,67033.0,0.1565388]
[1729591408667,0.00078875,67034.0,67033.0,0.0073588]
[1729591409336,0.00078875,67034.0,67033.0,0.1565388]
[1729591410948,0.00078875,67034.0,67033.0,0.0073588]
[1729591412862,0.00078875,67034.0,67033.0,0.1565388]
[1729591413324,0.00078875,67034.0,67033.0,0.1795388]
[1729591414966,0.00078875,67034.0,67033.0,0.3496388]
[1729591415180,0.00078875,67034.0,67033.0,0.4496388]
[1729591416381,0.00078875,67034.0,67033.0,0.4436388]
[1729591416596,0.00078875,67034.0,67033.0,0.4526388]
[1729591417037,0.00078875,67034.0,67033.0,0.4636388]
[1729591419979,0.00078875,67034.0,67033.0,0.53020382]
[1729591422335,0.00078875,67034.0,67033.0,0.61779431]
[1729591424051,0.00078875,67034.0,67033.0,0.4636388]
[1729591427730,0.00078875,67034.0,67033.0,0.4406388]
[1729591427992,0.00078875,67034.0,67033.0,0.0213588]
[1729591428262,0.3766259,67034.0,67033.0,0.0213588]
[1729591428969,0.3816259,67034.0,67033.0,0.0213588]
[1729591429246,0.42630021,67034.0,67033.0,0.0123588]
[1729591429507,0.42630021,67034.0,67033.0,0.0013588]
[1729591429731,0.42630021,67034.0,67033.0,0.0043588]
[1729591429732,0.54666303,67034.0,67033.0,0.0043588]
[1729591429953,0.3816259,67034.0,67033.0,0.0073588]
[1729591430189,0.63601412,67034.0,67033.0,0.0073588]
[1729591430430,0.55666549,67034.0,67033.0,0.0043588]
[1729591430686,0.55766549,67034.0,67033.0,0.0013588]
[1729591430923,0.83644805,67034.0,67033.0,0.0013588]
[1729591431144,0.83444805,67034.0,67033.0,0.0013588]
[1729591431867,0.72268727,67034.0,67033.0,0.0013588]
[1729591432593,0.72468727,67034.0,67033.0,0.0023588]
[1729591432841,0.83640606,67034.0,67033.0,0.0023588]
[1729591433545,0.72468727,67034.0,67033.0,0.0023588]
[1729591433771,0.55964768,67034.0,67033.0,0.0023588]
[1729591434510,0.64899154,67034.0,67033.0,0.0023588]
[1729591435686,0.64883469,67034.0,67033.0,0.0023588]
[1729591437503,0.55950394,67034.0,67033.0,0.0023588]
[1729591438455,0.3946259,67034.0,67033.0,0.0023588]
[1729591440586,0.39436379,67034.0,67033.0,0.0023588]
[1729591443364,0.46133754,67034.0,67033.0,0.0023588]
[1729591445167,0.45633754,67034.0,67033.0,0.0023588]
[1729591447445,0.38936379,67034.0,67033.0,0.0023588]
[1729591448128,0.45633754,67034.0,67033.0,0.0023588]
[1729591448385,0.46133754,67034.0,67033.0,0.0023588]
[1729591448617,0.64846066,67034.0,67033.0,0.0023588]
[1729591448846,0.64846066,67034.0,67026.0,0.22265268]
[1729591448847,0.154193,67027.0,67026.0,0.22265268]
[1729591449072,0.30315215,67027.0,67026.0,0.22265268]
[1729591449529,0.149202,67023.0,67017.0,0.22265268]
[1729591449760,0.37616115,67023.0,67017.0,0.22265268]
[1729591450460,0.29816115,67023.0,67017.0,0.22265268]
[1729591450970,0.29816115,67023.0,67022.0,0.00965]
[1729591451197,0.29816115,67023.0,67022.0,0.00565]
[1729591451887,0.14895915,67023.0,67022.0,0.00565]
[1729591452349,0.14895915,67023.0,67022.0,0.00165]
[1729591452603,0.14895915,67023.0,67022.0,0.00365]
[1729591453083,0.04463539,67033.0,67026.0,0.149195]
[1729591453349,0.00052664,67034.0,67031.0,0.08765532]
[1729591453589,0.14948579,67034.0,67028.0,0.08765532]
[1729591454057,0.14948579,67034.0,67028.0,0.23684532]
[1729591454290,0.14948579,67034.0,67028.0,0.08765532]
[1729591454523,0.14948579,67034.0,67027.0,0.149192]
[1729591454861,0.004,67033.0,67027.0,0.149192]
[1729591455790,0.004,67033.0,67026.0,0.001]
[1729591455791,0.149193,67027.0,67026.0,0.001]
[1729591456017,0.30314115,67032.0,67025.0,0.22265268]
[1729591456249,0.14895915,67032.0,67025.0,0.22265268]
[1729591456470,0.001,67033.0,67028.0,0.001]
[1729591456698,0.14995915,67033.0,67028.0,0.001]
[1729591456933,0.14995915,67033.0,67027.0,0.0841]
[1729591457170,0.14895915,67033.0,67027.0,0.0831]
[1729591457396,0.001,67032.0,67027.0,0.0831]
[1729591458837,0.15195915,67033.0,67027.0,0.0831]
[1729591459075,0.30213915,67033.0,67027.0,0.0831]
[1729591459296,0.29813915,67033.0,67027.0,0.0831]
[1729591459543,0.14895915,67033.0,67027.0,0.0831]
[1729591459786,0.004,67032.0,67027.0,0.0831]
[1729591460034,0.001,67032.0,67027.0,0.0831]
[1729591460520,0.14895915,67031.0,67023.0,0.0822]
[1729591460763,0.447559,67030.0,67026.0,0.22265268]
[1729591460977,0.447559,67030.0,67023.0,0.0822]
[1729591460978,0.149192,67028.0,67021.0,0.0965]
[1729591461230,0.29815115,67028.0,67021.0,0.0965]
[1729591461707,0.14895915,67028.0,67022.0,0.150854]
[1729591461930,0.14895915,67028.0,67022.0,0.00165]
[1729591462170,0.14895915,67028.0,67023.0,0.01116245]
[1729591462401,0.14895915,67028.0,67027.0,0.00165]
[1729591462618,0.14995915,67028.0,67027.0,0.00165]
[1729591463538,0.15195915,67028.0,67027.0,0.00165]
[1729591463761,0.15295915,67028.0,67027.0,0.00165]
[1729591463991,0.14995915,67028.0,67027.0,0.00165]
[1729591464427,0.15295915,67028.0,67027.0,0.00165]
[1729591465828,0.004,67028.0,67027.0,0.00165]
[1729591466047,0.004,67028.0,67027.0,0.150843]
[1729591466341,0.004,67028.0,67027.0,0.00165]
[1729591466561,0.14970464,67034.0,67027.0,0.00165]
[1729591466782,0.14895915,67033.0,67027.0,0.00165]
[1729591467012,0.004,67028.0,67027.0,0.00165]
[1729591467238,0.003,67028.0,67027.0,0.00165]
[1729591467463,0.001,67028.0,67027.0,0.00165]
[1729591467652,0.003,67028.0,67027.0,0.150843]
[1729591467935,0.003,67028.0,67027.0,0.233643]
[1729591468158,0.003,67028.0,67027.0,0.331743]
[1729591468378,0.003,67028.0,67027.0,0.4149524]
[1729591468597,0.003,67028.0,67027.0,0.331743]
[1729591468839,0.002,67028.0,67027.0,0.331743]
[1729591469092,0.001,67033.0,67029.0,0.149187]
[1729591469307,0.001,67028.0,67027.0,0.18255]
[1729591469523,0.001,67028.0,67027.0,0.337743]
[1729591469744,0.00052664,67034.0,67027.0,0.18855]
[1729591469993,0.00052664,67034.0,67029.0,0.298377]
[1729591470260,0.00052664,67034.0,67031.0,0.149184]
[1729591470705,0.00052664,67034.0,67029.0,0.023]
[1729591470930,0.00052664,67034.0,67033.0,0.14918]
[1729591471614,0.00152664,67034.0,67033.0,0.14918]
[1729591471843,0.00152664,67034.0,67032.0,0.14918]
[1729591472079,0.00152664,67034.0,67031.0,0.023]
[1729591472321,0.00152664,67034.0,67027.0,0.00165]
[1729591472322,0.149189,67029.0,67027.0,0.00165]
[1729591472545,0.149185,67031.0,67029.0,0.22265268]
[1729591472769,0.149186,67030.0,67027.0,0.00165]
[1729591473241,0.04470846,67031.0,67027.0,0.00165]
[1729591473473,0.298364,67032.0,67027.0,0.00165]
[1729591473474,0.149191,67028.0,67027.0,0.00165]
[1729591474676,0.21625369,67028.0,67027.0,0.00365]
[1729591474905,0.149191,67028.0,67027.0,0.00365]
[1729591475157,0.06706269,67029.0,67027.0,0.00165]
[1729591475381,0.06706269,67028.0,67027.0,0.00565]
[1729591475660,0.29814815,67029.0,67027.0,0.00565]
[1729591475661,0.14895915,67029.0,67027.0,0.00565]
[1729591475875,0.14895915,67029.0,67027.0,0.00765]
[1729591475876,0.1937037,67029.0,67027.0,0.00765]
[1729591476338,0.04474455,67028.0,67027.0,0.00565]
[1729591476561,0.04574455,67028.0,67027.0,0.00565]
[1729591476799,0.04474455,67028.0,67027.0,0.00565]
[1729591477043,0.3428937,67029.0,67027.0,0.00565]
[1729591477249,0.3428937,67029.0,67027.0,0.00165]
[1729591477477,0.3438937,67029.0,67027.0,0.00365]
[1729591477702,0.04474455,67028.0,67027.0,0.00365]
[1729591478168,0.3428937,67029.0,67027.0,0.00165]
[1729591478400,0.04474455,67028.0,67027.0,0.00165]
[1729591479031,0.36521184,67029.0,67027.0,0.00165]
[1729591479286,0.001,67028.0,67027.0,0.00165]
[1729591479502,0.04774636,67028.0,67027.0,0.00165]
[1729591479717,0.00326211,67028.0,67027.0,0.00165]
[1729591479933,0.04800851,67028.0,67027.0,0.00165]
[1729591480155,0.04700851,67028.0,67027.0,0.00165]
[1729591481089,0.04600851,67028.0,67027.0,0.00165]
[1729591481308,0.00126211,67028.0,67027.0,0.00165]
[1729591481564,0.04600904,67028.0,67027.0,0.00165]
[1729591481973,0.04600881,67028.0,67027.0,0.00165]
[1729591482203,0.04800881,67028.0,67027.0,0.00165]
[1729591482859,0.00326211,67028.0,67027.0,0.00165]
[1729591491082,0.00326211,67028.0,67027.0,0.2739336]
[1729591491281,0.00326211,67028.0,67027.0,0.251843]
[1729591491985,0.00126211,67028.0,67027.0,0.251843]
[1729591492220,0.00326211,67028.0,67027.0,0.251843]
[1729591492423,0.00226211,67028.0,67027.0,0.251843]
[1729591492682,0.00326211,67028.0,67027.0,0.251843]
[1729591492894,0.00226211,67028.0,67027.0,0.251843]
[1729591493398,0.00226211,67028.0,67027.0,0.260843]
[1729591493631,0.00026211,67028.0,67027.0,0.260843]
[1729591493816,0.00026211,67028.0,67027.0,0.267843]
[1729591494301,0.00026211,67028.0,67027.0,0.260843]
[1729591494740,0.00026211,67028.0,67027.0,0.268843]
[1729591502239,0.00026211,67028.0,67027.0,0.01865]
[1729591503130,0.14945311,67028.0,67027.0,0.01865]
[1729591503674,0.19418196,67028.0,67027.0,0.01865]
[1729591503900,0.34314111,67028.0,67027.0,0.01865]
[1729591504874,0.34314111,67028.0,67027.0,0.01065]
[1729591505096,0.19395011,67028.0,67027.0,0.01065]
[1729591505324,0.19495901,67028.0,67027.0,0.01065]
[1729591505556,0.15022126,67028.0,67027.0,0.01065]
[1729591505784,0.14922126,67028.0,67027.0,0.01065]
[1729591506001,0.15222126,67028.0,67027.0,0.01065]
[1729591506297,0.15222126,67028.0,67027.0,0.00165]
[1729591506524,0.00526211,67028.0,67027.0,0.00165]
[1729591507189,0.00026211,67028.0,67027.0,0.00165]
[1729591507635,0.00726211,67028.0,67027.0,0.00165]
[1729591507846,0.00426211,67028.0,67027.0,0.00165]
[1729591508085,0.00026211,67028.0,67027.0,0.00165]
[1729591508588,0.00126211,67028.0,67027.0,0.00165]
[1729591508823,0.04599986,67028.0,67027.0,0.00165]
[1729591509049,0.19519086,67028.0,67027.0,0.00165]
[1729591509482,0.04599986,67028.0,67027.0,0.00165]
[1729591509906,0.04600049,67028.0,67027.0,0.00165]
[1729591511809,0.04600049,67028.0,67027.0,0.00165]
[1729591512568,0.19495964,67028.0,67027.0,0.00165]
[1729591513713,0.15022126,67028.0,67027.0,0.00165]
[1729591514874,0.19495964,67028.0,67027.0,0.00165]
[1729591515093,0.15022126,67028.0,67027.0,0.00165]
[1729591517538,0.19495964,67028.0,67027.0,0.00165]
[1729591518669,0.15022126,67028.0,67027.0,0.00165]
[1729591519186,0.19495964,67028.0,67027.0,0.00165]
[1729591520791,0.34415064,67028.0,67027.0,0.00165]
[1729591521018,0.57295092,67028.0,67027.0,0.00165]
[1729591521250,0.73810437,67028.0,67027.0,0.00165]
[1729591521726,0.65046571,67028.0,67027.0,0.00165]
[1729591523770,0.76228216,67028.0,67027.0,0.00165]
[1729591524016,0.65046571,67028.0,67027.0,0.00165]
[1729591524245,0.76228194,67028.0,67027.0,0.00165]
[1729591526473,0.65046571,67028.0,67027.0,0.00165]
[1729591526761,0.76228194,67028.0,67027.0,0.00165]
[1729591527701,0.40479697,67028.0,67027.0,0.00165]
[1729591528192,0.31537471,67028.0,67027.0,0.00165]
[1729591529474,0.31526407,67028.0,67027.0,0.00165]
[1729591530028,0.46445507,67028.0,67027.0,0.00165]
[1729591531094,0.31526407,67028.0,67027.0,0.00165]
[1729591531318,0.46445507,67028.0,67027.0,0.00165]
[1729591531544,0.31526407,67028.0,67027.0,0.00165]
[1729591532036,0.15022126,67028.0,67027.0,0.00165]
[1729591532256,0.15022126,67028.0,67027.0,0.00745987]
[1729591532494,0.15022126,67028.0,67027.0,0.00165]
[1729591532924,0.15022126,67028.0,67027.0,0.00745987]
[1729591533116,0.19492813,67028.0,67027.0,0.00165]
[1729591533380,0.19492813,67028.0,67027.0,0.00745987]
[1729591533594,0.15022126,67028.0,67027.0,0.00165]
[1729591533812,0.15022126,67028.0,67027.0,0.00745987]
[1729591534025,0.19492813,67028.0,67027.0,0.00165]
[1729591534245,0.15022126,67028.0,67027.0,0.00165]